bitfinex-derivatives/quotes_ETHF0:USTF0_20260121
["timestamp","ask_amount","ask_price","bid_price","bid_amount"]
[1769009403110,0.00355629,2993.6,2991.7,3.59504869]
[1769009403313,0.00355629,2993.6,2991.9,3.42778869]
[1769009403514,0.00355629,2993.6,2992.1,3.42778869]
[1769009404201,0.00355629,2993.6,2992.3,0.16723]
[1769009404402,0.16708,2995.0,2992.6,3.42778869]
[1769009404709,0.16708,2995.0,2992.8,3.42778869]
[1769009404908,3.56082541,2995.0,2992.9,0.1672]
[1769009405112,3.39374541,2994.9,2993.5,0.00500734]
[1769009405506,3.39709769,2994.9,2993.5,0.00500734]
[1769009405805,3.39374541,2994.7,2993.5,0.00500734]
[1769009406011,3.56084541,2994.7,2993.5,0.00500734]
[1769009407415,0.00335228,2994.9,2993.5,0.00500734]
[1769009408213,0.00335228,2994.9,2993.5,3.43279603]
[1769009408715,0.00335228,2994.9,2993.5,0.00500734]
[1769009408915,3.39374541,2994.6,2993.5,0.00500734]
[1769009409215,3.56088541,2993.9,2991.9,3.42778869]
[1769009409408,3.56089541,2993.8,2991.9,3.42778869]
[1769009410208,0.16717,2993.4,2991.5,0.00254945]
[1769009410406,3.39374541,2993.2,2991.5,0.00254945]
[1769009410607,3.56093541,2993.1,2991.5,0.00254945]
[1769009410817,3.39374541,2993.1,2991.5,0.00254945]
[1769009411014,0.00500734,2992.6,2991.5,0.00254945]
[1769009411317,0.00847897,2992.6,2991.5,0.00254945]
[1769009411706,3.56944438,2992.6,2990.4,2.92221947]
[1769009411911,3.56944438,2992.6,2990.3,6.51734816]
[1769009412114,0.00847897,2992.6,2990.7,3.42778869]
[1769009412319,0.00847897,2992.6,2990.9,3.42778869]
[1769009412519,0.00847897,2992.6,2991.4,3.42778869]
[1769009412713,3.39374541,2993.7,2991.4,3.42778869]
[1769009412912,3.39374541,2993.7,2991.6,3.42778869]
[1769009413212,3.39374541,2993.5,2991.4,2.36962439]
[1769009413412,3.39374541,2993.2,2991.2,2.36962439]
[1769009413612,1.858,2994.0,2991.1,6.35000816]
[1769009413613,3.56093541,2993.0,2991.1,3.42778869]
[1769009413816,3.56343577,2993.0,2991.1,3.4307809]
[1769009414016,3.39624577,2993.0,2991.1,3.4307809]
[1769009414412,0.00250036,2993.0,2991.1,3.4307809]
[1769009414613,0.00250036,2993.0,2991.3,3.59507869]
[1769009414813,0.00250036,2993.0,2991.5,3.59505869]
[1769009415422,0.00250036,2993.0,2991.5,0.16727]
[1769009415624,0.00250036,2993.0,2991.5,3.82621649]
[1769009416517,0.00250036,2993.0,2991.6,3.82621649]
[1769009417622,3.89237974,2994.2,2991.9,3.65894649]
[1769009417923,3.89237974,2994.2,2991.1,3.34599221]
[1769009417924,3.89237974,2994.2,2992.0,3.65894649]
[1769009418125,3.72524974,2994.2,2992.4,3.82617649]
[1769009418623,3.72524974,2994.2,2992.1,2.36962439]
[1769009418822,3.89645412,2994.2,2992.0,2.36962439]
[1769009419027,3.72524974,2994.0,2991.9,3.65894649]
[1769009419527,0.00407438,2994.2,2992.3,3.82617649]
[1769009419827,0.00407438,2994.2,2992.5,3.82616649]
[1769009420629,0.00407438,2994.2,2992.2,2.36962439]
[1769009420630,3.72932412,2994.2,2992.1,40.8]
[1769009420837,3.72932412,2994.2,2992.0,6.02857088]
[1769009421323,3.89241974,2993.4,2991.5,5.29184386]
[1769009421524,0.16719,2993.0,2991.2,6.37896841]
[1769009421726,3.89243974,2993.0,2991.1,2.3726166]
[1769009422130,3.89244974,2992.9,2991.1,0.00299221]
[1769009423728,1.858,2993.7,2991.1,0.00299221]
[1769009423729,3.89244974,2992.8,2991.1,0.00299221]
[1769009424722,3.72524974,2992.8,2991.1,0.00299221]
[1769009425729,3.89238974,2994.0,2991.6,3.65894649]
[1769009425927,5.05998844,2993.9,2991.7,0.16727]
[1769009426133,5.059957,2993.8,2991.7,0.16727]
[1769009426433,3.89239974,2993.8,2991.7,0.16727]
[1769009426828,3.72524974,2993.8,2992.0,0.16725]
[1769009427425,3.72524974,2993.8,2991.8,3.65894649]
[1769009427625,3.72524974,2993.8,2991.6,2.36962439]
[1769009428026,3.89239974,2993.8,2991.6,2.36962439]
[1769009428227,0.00407438,2994.2,2991.6,2.36962439]
[1769009428228,3.72524974,2993.6,2991.6,2.36962439]
[1769009428430,0.00407438,2994.2,2991.9,3.65894649]
[1769009428634,3.72524974,2994.0,2991.9,3.82619649]
[1769009429231,3.72524974,2993.6,2991.9,0.16725]
[1769009430033,3.72524974,2993.2,2991.5,2.36962439]
[1769009430236,3.72524974,2992.9,2991.1,0.00299221]
[1769009430738,3.89244974,2992.9,2991.1,0.00299221]
[1769009430933,3.72524974,2992.6,2991.1,0.00299221]
[1769009431237,3.89246974,2992.6,2991.1,0.00299221]
[1769009431438,3.89246974,2992.6,2990.3,3.65894649]
[1769009431439,3.72524974,2992.4,2990.0,2.36962439]
[1769009431631,0.16725,2992.0,2990.0,2.36962439]
[1769009431832,3.89249974,2992.0,2990.0,2.36962439]
[1769009432033,3.72524974,2992.0,2990.1,0.16735]
[1769009432434,4.00479689,2992.0,2990.1,0.17069881]
[1769009433035,0.00288887,2992.0,2990.2,3.82629649]
[1769009433236,3.72813861,2992.0,2990.2,3.82629649]
[1769009433438,3.72813861,2992.0,2990.2,0.16735]
[1769009433631,4.17735613,2992.0,2990.1,0.00334881]
[1769009433841,3.89250974,2991.8,2990.1,0.00334881]
[1769009434232,3.89251974,2991.6,2990.1,0.00334881]
[1769009434433,3.72524974,2991.3,2990.1,0.00334881]
[1769009434637,3.89253974,2991.3,2990.1,0.00334881]
[1769009434940,3.89253974,2991.3,2989.2,2.53703439]
[1769009435334,3.89253974,2991.3,2989.2,0.16741]
[1769009435635,3.72524974,2991.7,2989.4,3.82633649]
[1769009435846,3.72524974,2991.5,2989.4,3.830615]
[1769009436134,3.72524974,2991.5,2989.7,3.65894649]
[1769009436338,4.01010613,2992.0,2989.9,0.16736]
[1769009436738,3.72524974,2991.8,2989.4,2.3739029]
[1769009436933,0.28485639,2992.0,2989.4,0.00427851]
[1769009436934,3.72524974,2991.4,2989.4,0.00427851]
[1769009438139,0.28485639,2992.0,2989.4,0.00427851]
[1769009438140,0.16731,2991.0,2989.4,0.00427851]
[1769009438340,0.28485639,2992.0,2989.4,0.00427851]
[1769009438341,3.89256974,2990.7,2989.4,0.00427851]
[1769009438845,3.72524974,2990.7,2989.4,0.00427851]
[1769009439140,3.89257974,2990.5,2988.4,0.16745]
[1769009439435,1.859,2991.3,2988.0,2.37135095]
[1769009439436,3.72524974,2990.1,2988.0,2.37135095]
[1769009439635,3.72524974,2989.6,2987.6,2.37135095]
[1769009439835,1.859,2990.0,2987.3,7.20462382]
[1769009439836,3.72524974,2989.4,2987.3,7.20462382]
[1769009440035,3.89590655,2989.4,2987.3,4.83751611]
[1769009440433,3.72524974,2989.0,2987.3,0.00424324]
[1769009440741,0.00325681,2989.4,2987.3,0.00424324]
[1769009440742,3.72524974,2988.9,2987.3,0.00424324]
[1769009440939,0.00325681,2989.4,2987.3,0.00424324]
[1769009441339,0.00325681,2989.4,2987.7,0.16749]
[1769009441738,0.00325681,2989.4,2987.7,3.82643649]
[1769009442539,0.00325681,2989.4,2987.9,3.65894649]
[1769009442836,0.00325681,2989.4,2988.5,0.16744]
[1769009443243,0.00325681,2989.4,2988.6,0.16744]
[1769009443438,3.72524974,2990.7,2988.6,0.16744]
[1769009444233,3.72524974,2990.7,2988.7,0.16743]
[1769009444434,3.72524974,2991.3,2988.9,3.65894649]
[1769009444633,0.00249459,2990.7,2989.4,0.16739]
[1769009444843,0.00249459,2990.7,2989.4,0.16998743]
[1769009445647,0.00249459,2990.7,2989.5,0.16739]
[1769009446047,0.00249459,2990.7,2989.5,3.90445711]
[1769009446345,3.47365113,2992.9,2990.6,3.73706711]
[1769009446649,3.47365113,2992.9,2990.6,3.90439711]
[1769009446840,3.75076626,2992.9,2990.7,3.73706711]
[1769009447042,3.47365113,2993.5,2991.2,3.90435711]
[1769009447248,3.47610853,2993.5,2991.2,3.90435711]
[1769009447948,3.75512964,2993.5,2991.2,3.90435711]
[1769009448249,3.92229964,2993.5,2991.2,3.90435711]
[1769009450145,0.16717,2993.4,2991.2,3.90435711]
[1769009450344,3.47365113,2993.3,2991.2,3.90435711]
[1769009450854,3.64083113,2993.3,2990.6,3.73706711]
[1769009451050,3.64083113,2993.3,2990.6,3.90439711]
[1769009451251,3.64083113,2993.3,2990.6,3.73706711]
[1769009451753,3.64083113,2993.3,2991.2,0.16729]
[1769009452047,3.47365113,2993.3,2991.3,0.16729]
[1769009452248,3.47365113,2993.3,2990.6,3.73706711]
[1769009452452,3.47365113,2993.3,2990.9,0.16731]
[1769009452752,3.64083113,2993.3,2990.9,0.16731]
[1769009453648,3.64083113,2993.3,2991.0,3.90436711]
[1769009454155,3.64083113,2993.3,2991.1,0.1673]
[1769009455956,3.64083113,2993.3,2991.0,3.73706711]
[1769009455957,3.64083113,2993.3,2991.2,3.90435711]
[1769009456457,0.0024574,2993.5,2991.8,3.73706711]
[1769009456660,0.0024574,2993.5,2991.8,3.74070549]
[1769009456960,0.0024574,2993.5,2991.9,3.73706711]
[1769009457458,0.0024574,2993.5,2992.4,3.90428711]
[1769009457757,0.0024574,2993.5,2992.4,0.16722]
[1769009458050,0.0024574,2993.5,2991.8,44.70796549]
[1769009458252,0.0024574,2993.5,2991.8,0.00363838]
[1769009458443,3.74490456,2993.3,2991.8,0.00363838]
[1769009459258,3.74491456,2993.2,2991.8,0.00363838]
[1769009460752,3.57772456,2992.8,2990.5,3.66452303]
[1769009461049,3.74493456,2992.8,2990.6,0.16733]
[1769009461249,3.74493456,2992.8,2990.7,0.16732]
[1769009461451,3.74493456,2992.8,2990.5,3.49719303]
[1769009461650,0.0024574,2993.5,2991.7,0.16726]
[1769009461857,0.0024574,2993.5,2991.7,3.50103848]
[1769009462156,0.0024574,2993.5,2992.1,0.16724]
[1769009462360,0.0024574,2993.5,2992.3,0.00501629]
[1769009463052,0.16712,2994.4,2992.4,3.66441303]
[1769009463258,3.74480456,2995.1,2993.0,0.16719]
[1769009463556,3.57772456,2995.1,2993.1,0.16719]
[1769009463750,3.57772456,2995.1,2993.3,0.16717]
[1769009464056,3.58094252,2995.1,2993.1,3.49719303]
[1769009464250,4.01668639,2995.1,2992.7,3.66440303]
[1769009464450,4.01668639,2995.1,2993.1,3.49719303]
[1769009464650,3.74480456,2995.0,2992.6,40.8]
[1769009464866,3.57772456,2995.0,2992.7,3.49719303]
[1769009465051,0.00321796,2995.1,2993.2,3.49719303]
[1769009465551,0.28003145,2995.1,2993.2,3.49719303]
[1769009465752,0.00321796,2995.1,2993.2,3.66437303]
[1769009467057,0.00321796,2995.1,2993.3,3.66437303]
[1769009467453,0.00321796,2995.1,2993.5,3.66435303]
[1769009468160,0.00321796,2995.1,2993.6,3.66435303]
[1769009468655,29.7610162,2997.4,2992.6,45.21165209]
[1769009468656,3.57772456,2997.6,2994.7,3.49719303]
[1769009468859,3.57772456,2997.6,2994.6,0.1671]
[1769009468860,3.57772456,2997.6,2994.9,4.90241151]
[1769009469362,4.01562472,2997.6,2994.9,3.49719303]
[1769009469554,3.57772456,2997.2,2994.9,0.00310928]
[1769009469753,3.57772456,2997.0,2994.9,0.00310928]
[1769009469950,0.00500642,2996.5,2994.9,0.00310928]
[1769009470761,3.58273098,2996.5,2994.9,0.00310928]
[1769009471262,3.58273098,2996.5,2993.7,3.49719303]
[1769009472264,3.57772456,2996.3,2993.7,3.50099639]
[1769009473962,0.00500642,2996.5,2993.7,3.66814639]
[1769009474357,0.00500642,2996.5,2993.9,3.49719303]
[1769009474754,0.00500642,2996.5,2993.9,5.53937919]
[1769009474953,0.00500642,2996.5,2994.2,3.49719303]
[1769009475264,0.00500642,2996.5,2994.5,3.49719303]
[1769009475465,0.00500642,2996.5,2994.7,3.61303896]
[1769009475959,0.00500642,2996.5,2994.8,4.142]
[1769009476168,0.00500642,2996.5,2994.9,3.61303896]
[1769009476664,0.00500642,2996.5,2995.1,3.61303896]
[1769009477365,0.00500642,2996.5,2994.4,3.61303896]
[1769009477667,3.41813431,2996.5,2994.5,6.31703896]
[1769009477960,3.41813431,2996.5,2994.7,3.61303896]
[1769009477961,0.00500642,2996.5,2994.7,3.61303896]
[1769009478159,0.00500642,2996.5,2994.8,4.156]
[1769009478561,0.00500642,2996.5,2994.9,3.61303896]
[1769009479269,0.00500642,2996.5,2995.1,3.61303896]
[1769009479770,0.00500642,2996.5,2995.3,3.61303896]
[1769009479967,0.27421889,2997.6,2995.3,3.61303896]
[1769009481370,3.68734678,2997.6,2995.3,3.61303896]
[1769009481571,3.68734678,2997.6,2995.3,6.41403896]
[1769009481776,3.68734678,2997.6,2996.2,0.00500642]
[1769009482077,3.68734678,2997.6,2996.2,0.00763109]
[1769009483074,0.27421889,2997.6,2996.2,0.00763109]
[1769009483679,0.00325873,2997.6,2996.2,0.00763109]
[1769009484274,0.00325873,2997.6,2996.2,3.62067005]
[1769009484972,0.00325873,2997.6,2996.2,0.00763109]
[1769009485166,3.41638662,2997.6,2996.2,0.00763109]
[1769009485371,3.41638662,2997.6,2994.9,3.61303896]
[1769009485372,3.58008789,2997.2,2994.9,3.61303896]
[1769009485677,0.00500642,2997.2,2994.9,3.61303896]
[1769009485874,0.00500642,2997.2,2994.2,4.07204616]
[1769009485875,0.00500642,2997.2,2995.1,3.78010896]
[1769009486379,3.58509431,2997.2,2995.1,3.61303896]
[1769009486579,3.58509431,2997.2,2995.1,3.61653755]
[1769009487878,0.00500642,2997.2,2995.2,0.16707]
[1769009488083,0.00500642,2997.2,2995.3,3.61303896]
[1769009489981,0.17196642,2997.2,2995.3,3.61303896]
[1769009492178,3.41813431,2997.2,2995.1,0.00349859]
[1769009492571,0.167,2996.6,2995.1,0.00349859]
[1769009492773,0.16702,2996.2,2995.1,0.00349859]
[1769009493579,0.16705,2995.6,2993.5,3.61303896]
[1769009494489,0.00500642,2994.8,2993.5,3.61632647]
[1769009494791,0.00797296,2994.8,2993.5,3.61632647]
[1769009494984,0.00797296,2994.8,2993.5,3.78348647]
[1769009495189,3.41312789,2995.9,2993.7,3.78018896]
[1769009495486,0.16704,2995.8,2993.7,3.78018896]
[1769009495888,3.41312789,2995.9,2993.7,3.78018896]
[1769009496088,0.16705,2995.5,2993.7,3.61303896]
[1769009497192,3.41312789,2995.4,2993.5,0.00328751]
[1769009497494,0.16709,2994.9,2993.5,0.00328751]
[1769009497683,0.16706,2995.5,2993.5,3.61632647]
[1769009497991,3.41312789,2995.8,2993.7,3.61303896]
[1769009498584,0.16704,2995.7,2993.7,3.61303896]
[1769009498784,3.41312789,2995.8,2993.7,3.61303896]
[1769009498985,3.41312789,2995.6,2993.7,3.61303896]
[1769009499185,0.00240859,2995.9,2993.7,3.61303896]
[1769009499386,0.16705,2995.6,2993.7,3.61303896]
[1769009499589,0.00240859,2995.9,2993.9,3.61303896]
[1769009499787,0.00240859,2995.9,2994.5,0.00500642]
[1769009500788,0.00240859,2995.9,2994.5,3.61804538]
[1769009501093,0.00240859,2995.9,2994.5,3.78515538]
[1769009502304,0.00240859,2995.9,2994.5,0.00500642]
[1769009503290,0.00240859,2995.9,2994.5,3.61804538]
[1769009504292,0.00240859,2995.9,2994.5,3.78515538]
[1769009508686,0.00240859,2995.9,2994.5,0.00500642]
[1769009509086,2.38492409,2994.7,2993.7,0.53729538]
[1769009509294,2.38492409,2994.7,2992.6,3.45398605]
[1769009509295,0.16712,2994.4,2992.6,3.45398605]
[1769009509492,2.38492409,2994.7,2992.6,3.45398605]
[1769009509690,1.13242174,2994.6,2992.6,3.45398605]
[1769009509891,1.40544453,2994.8,2991.6,0.16727]
[1769009509892,0.16713,2994.1,2992.0,3.45398605]
[1769009510199,1.40544453,2994.8,2992.4,4.70854366]
[1769009510398,1.16843379,2994.7,2992.4,4.70854366]
[1769009510602,0.00500642,2993.5,2992.4,4.70854366]
[1769009510906,0.00820742,2993.5,2992.4,0.00354729]
[1769009514102,0.00820742,2993.5,2992.4,3.45753334]
[1769009515405,0.44627733,2994.8,2992.4,3.45753334]
[1769009515406,0.1671,2994.7,2992.4,3.45753334]
[1769009515602,0.1671,2994.6,2992.7,0.00500642]
[1769009515900,0.27917733,2994.8,2992.7,3.45899247]
[1769009516092,0.16712,2994.3,2992.7,3.45899247]
[1769009516298,0.17078337,2994.3,2992.7,3.45899247]
[1769009516706,0.16713,2994.1,2992.7,0.00500642]
[1769009519904,0.00366337,2994.3,2992.7,3.41952627]
[1769009520504,0.00366337,2994.3,2992.7,0.00500642]
[1769009520804,0.00556941,2994.3,2992.7,0.00500642]
[1769009521004,0.16716,2993.7,2992.7,0.00500642]
[1769009521304,0.00190604,2994.2,2992.7,6.42e-06]
[1769009521603,0.16718,2993.2,2992.4,0.00354729]
[1769009521797,0.00500642,2993.5,2992.4,0.00354729]
[1769009522397,0.16718,2993.3,2992.4,0.00354729]
[1769009522803,6.449,2993.4,2992.4,7.29e-06]
[1769009523003,0.00500642,2993.5,2991.0,3.41451985]
[1769009523004,0.16722,2992.5,2991.0,3.41451985]
[1769009523209,0.16723,2992.4,2990.1,3.41451985]
[1769009523411,0.16723,2992.4,2990.4,3.41451985]
[1769009523610,6.45400642,2993.5,2990.7,3.41451985]
[1769009523802,2.36842076,2994.3,2989.6,3.41451985]
[1769009523803,1.40836743,2992.4,2989.6,3.41451985]
[1769009524005,1.17973105,2992.3,2988.6,3.41451985]
[1769009524309,0.00501488,2991.6,2988.8,3.41451985]
[1769009524501,0.16734,2990.5,2988.8,3.41451985]
[1769009524706,0.16734,2990.4,2988.8,3.41451985]
[1769009524914,0.16980722,2990.4,2988.8,3.41849712]
[1769009525409,0.00501488,2989.9,2988.8,3.41849712]
[1769009526007,0.00501488,2989.9,2988.8,7.53849712]
[1769009526205,0.00501488,2989.9,2988.8,3.41849712]
[1769009527109,0.00501488,2989.9,2988.8,0.00397727]
[1769009527515,0.00501488,2989.9,2988.8,3.41849712]
[1769009528411,0.00246722,2990.4,2989.2,3.41451985]
[1769009529203,0.03625546,2991.8,2989.2,3.41451985]
[1769009529204,0.27516628,2990.9,2989.2,3.41451985]
[1769009529408,0.1673,2991.1,2989.3,3.41451985]
[1769009530006,0.1673,2991.1,2989.3,5.27351985]
[1769009530208,0.27392758,2991.1,2989.4,3.41451985]
[1769009530414,0.16732,2990.8,2989.1,0.00501488]
[1769009531011,0.16732,2990.8,2989.1,3.41953473]
[1769009531216,0.27392758,2991.1,2989.1,3.41953473]
[1769009531411,0.27392758,2991.1,2989.3,3.41451985]
[1769009531918,0.00390861,2991.1,2989.3,3.58191985]
[1769009532803,0.00390861,2991.1,2989.4,5.27351985]
[1769009533009,0.00390861,2991.1,2989.5,3.41451985]
[1769009533719,0.16725,2992.1,2989.9,3.41451985]
[1769009534519,0.16725,2992.1,2990.1,3.41451985]
[1769009534816,0.43707431,2992.1,2990.1,3.41451985]
[1769009535019,0.26982431,2992.1,2990.2,3.41451985]
[1769009535219,0.34506454,2992.1,2989.4,3.41451985]
[1769009535512,0.34506454,2992.1,2989.5,3.41451985]
[1769009536013,0.07946333,2992.0,2989.5,3.41451985]
[1769009536210,0.16728,2991.4,2989.6,4.132]
[1769009536517,0.16728,2991.4,2989.5,3.41451985]
[1769009537713,0.16729,2991.3,2989.6,3.75477179]
[1769009538414,0.06347109,2992.0,2989.6,3.75477179]
[1769009538617,0.1673,2991.2,2989.6,3.75477179]
[1769009539213,0.16731,2991.0,2989.6,3.75477179]
[1769009539414,0.16732,2990.8,2989.0,3.75477179]
[1769009540411,0.16728,2991.4,2989.0,3.75477179]
[1769009540611,0.16727,2991.7,2989.7,3.75477179]
[1769009540819,0.16728,2991.5,2989.7,3.75477179]
[1769009541520,0.31315864,2992.1,2989.7,3.75477179]
[1769009541714,0.43707431,2992.1,2989.7,3.75477179]
[1769009542019,0.16725,2992.0,2990.9,0.03747927]
[1769009542322,0.16725,2992.0,2990.9,0.09105274]
[1769009542519,0.16725,2992.0,2991.4,0.13956705]
[1769009542922,0.16725,2992.0,2991.7,0.17390871]
[1769009543115,0.16725,2992.0,2990.9,0.00252958]
[1769009543308,0.00372702,2992.1,2990.9,3.75730137]
[1769009544117,0.00372702,2992.1,2990.9,0.00252958]
[1769009544718,6.45272702,2992.1,2990.9,0.00252958]
[1769009545124,6.45272702,2992.1,2989.9,3.75477179]
[1769009545125,0.16729,2991.3,2989.9,3.75477179]
[1769009545323,6.45272702,2992.1,2989.9,3.75477179]
[1769009545324,0.16729,2991.2,2989.9,3.75477179]
[1769009545823,0.16731,2991.0,2989.4,3.75477179]
[1769009546323,0.16731,2991.0,2989.4,3.75778556]
[1769009546517,6.72467605,2992.1,2989.4,3.75778556]
[1769009546723,0.16728,2991.5,2989.4,3.75778556]
[1769009548523,6.72467605,2992.1,2990.4,0.01282249]
[1769009548726,0.87525007,2992.0,2990.4,3.76759428]
[1769009549024,0.04693907,2991.1,2989.4,0.00301377]
[1769009549323,0.87526353,2991.0,2989.4,0.00301377]
[1769009549625,0.16729,2991.3,2989.4,3.75778556]
[1769009549827,0.87639623,2991.2,2989.4,3.75778556]
[1769009550122,0.16729,2991.3,2989.4,3.75778556]
[1769009550922,0.28678599,2992.1,2989.4,3.75778556]
[1769009551118,0.16731,2991.0,2989.4,3.75778556]
[1769009551524,0.87766109,2990.9,2989.4,0.00301377]
[1769009551827,2.36475739,2992.0,2989.4,0.00301377]
[1769009552027,0.28678599,2992.1,2989.4,3.75778556]
[1769009552028,0.16729,2991.3,2989.4,3.75778556]
[1769009552228,0.87767694,2991.2,2989.4,3.75778556]
[1769009552430,1.04496694,2991.2,2989.4,3.75778556]
[1769009552726,0.16732,2990.7,2989.4,3.75778556]
[1769009554219,0.16732,2990.7,2989.4,0.00301377]
[1769009554417,0.87859695,2990.6,2989.4,0.00301377]
[1769009554626,0.16732,2990.7,2989.4,0.00301377]
[1769009554825,0.87859557,2990.6,2989.4,0.00301377]
[1769009555025,0.16732,2990.7,2989.4,0.00301377]
[1769009555226,0.1673,2991.2,2989.4,3.75778556]
[1769009555425,1.19653038,2991.1,2989.4,3.75778556]
[1769009555623,1.36384432,2991.0,2989.4,3.75778556]
[1769009555831,0.16733,2990.6,2989.4,0.00301377]
[1769009556031,0.87878149,2990.5,2989.4,0.00301377]
[1769009556228,0.16735,2990.3,2989.4,0.00301377]
[1769009556528,0.87891654,2990.2,2988.3,3.75477179]
[1769009556734,0.04278943,2990.7,2988.3,3.75477179]
[1769009557036,0.16735,2990.2,2988.3,3.75477179]
[1769009557533,0.16735,2990.2,2988.3,3.92476764]
[1769009557735,0.16732,2990.8,2988.5,3.75477179]
[1769009557932,0.16732,2990.8,2988.8,3.75477179]
[1769009557933,0.8788731,2990.7,2988.8,3.75477179]
[1769009558131,0.16728,2991.5,2989.5,3.75477179]
[1769009558528,0.27567605,2992.1,2989.4,0.00501488]
[1769009558529,0.44292605,2992.1,2989.8,3.75477179]
[1769009558735,0.31550645,2992.0,2990.1,3.75477179]
[1769009559030,0.44292605,2992.1,2990.1,3.75477179]
[1769009559333,0.31548647,2992.0,2990.1,3.75477179]
[1769009559526,0.27567605,2992.1,2990.1,3.75477179]
[1769009559729,0.27567605,2992.1,2990.3,3.92211179]
[1769009559931,2.36475739,2993.1,2990.8,3.75477179]
[1769009560231,0.31537154,2993.0,2990.8,3.92209179]
[1769009560533,0.27726127,2993.0,2991.0,3.75477179]
[1769009560731,0.16718,2993.3,2991.0,3.75477179]
[1769009560922,0.3151116,2993.2,2991.0,3.75731843]
[1769009561122,0.3151116,2993.1,2991.0,3.75731843]
[1769009561328,0.17120653,2993.3,2991.0,3.75731843]
[1769009561528,0.31490538,2993.2,2991.0,3.75731843]
[1769009561739,0.17120653,2993.3,2991.0,3.75731843]
[1769009561930,0.31490528,2993.2,2991.1,3.75477179]
[1769009562131,0.26589945,2993.2,2991.1,3.75477179]
[1769009562331,0.17120653,2993.3,2991.1,3.75477179]
[1769009562534,0.31467021,2993.2,2991.1,3.75477179]
[1769009562836,0.17120653,2993.3,2991.1,3.75477179]
[1769009563041,0.44738796,2993.3,2991.1,3.75477179]
[1769009563238,0.44738796,2993.3,2991.2,3.75477179]
[1769009565838,0.28020796,2993.3,2991.4,3.66640694]
[1769009566040,0.00402653,2993.3,2991.7,3.66640694]
[1769009566241,3.39788011,2994.4,2991.0,4.11054664]
[1769009566242,3.39788011,2994.4,2992.1,3.66640694]
[1769009566635,3.39788011,2994.4,2992.3,3.66640694]
[1769009566837,3.39788011,2994.4,2992.8,3.66640694]
[1769009567146,3.40091196,2994.4,2992.8,3.83360694]
[1769009567350,3.40091196,2994.4,2993.1,3.66640694]
[1769009567550,3.40091196,2994.4,2993.1,3.67004329]
[1769009568050,0.95396091,2995.5,2993.1,3.67004329]
[1769009568251,1.12102091,2995.5,2993.1,3.67004329]
[1769009568747,0.27098838,2996.0,2994.0,3.66640694]
[1769009568955,0.00321354,2996.0,2994.0,3.66640694]
[1769009570443,3.42846037,2995.9,2993.4,3.66640694]
[1769009570655,0.16705,2995.7,2993.4,3.66640694]
[1769009571348,3.59551037,2995.7,2993.4,3.66640694]
[1769009571548,0.27214008,2996.0,2993.4,3.66640694]
[1769009572260,0.27214008,2996.0,2993.6,3.66640694]
[1769009572750,3.70060045,2996.0,2993.6,3.66640694]
[1769009572953,0.16704,2995.8,2993.6,3.66640694]
[1769009573157,1.40691047,2995.8,2993.6,3.66640694]
[1769009573349,3.42846037,2995.7,2993.6,3.66640694]
[1769009573549,0.16706,2995.4,2993.6,3.66640694]
[1769009573745,0.16707,2995.3,2993.1,0.00363635]
[1769009573953,0.16707,2995.3,2993.1,3.67004329]
[1769009574352,0.16707,2995.2,2993.1,3.67004329]
[1769009575256,0.16707,2995.2,2993.1,3.83723329]
[1769009575459,6.449,2995.6,2993.1,3.83723329]
[1769009575764,6.449,2995.6,2993.3,3.66640694]
[1769009575953,6.449,2995.6,2993.3,3.83357694]
[1769009577160,9.87746037,2995.6,2993.3,3.83357694]
[1769009577849,0.16706,2995.5,2993.3,3.83357694]
[1769009578048,6.449,2995.6,2993.5,3.83356694]
[1769009579050,6.449,2995.6,2993.1,0.00363635]
[1769009579051,0.00321354,2996.0,2994.3,3.44759342]
[1769009579251,0.00321354,2996.0,2994.6,3.44759342]
[1769009581052,0.00321354,2996.0,2994.6,3.61469342]
[1769009581553,0.00321354,2996.0,2994.8,3.44759342]
[1769009581758,0.00321354,2996.0,2994.1,3.44759342]
[1769009582147,0.00321354,2996.0,2994.4,3.61470342]
[1769009582550,0.00321354,2996.0,2994.7,3.44759342]
[1769009582756,0.00321354,2996.0,2994.7,3.61469342]
[1769009583159,0.00321354,2996.0,2994.7,3.44759342]
[1769009584552,1.40691047,2997.1,2994.7,3.44759342]
[1769009584553,0.16697,2997.1,2994.7,3.44759342]
[1769009584754,0.16698,2996.9,2994.7,3.44759342]
[1769009585658,0.17031753,2996.9,2994.9,3.44759342]
[1769009587252,0.17031753,2996.9,2994.9,3.61468342]
[1769009587849,0.00333753,2996.9,2995.3,3.44759342]
[1769009588058,0.00333753,2996.9,2995.3,3.45156352]
[1769009588363,0.27439353,2996.9,2995.3,3.45156352]
[1769009590066,0.27439353,2996.9,2995.3,3.61862352]
[1769009590359,0.27439353,2996.9,2995.5,3.44759342]
[1769009592659,0.27439353,2996.9,2995.3,0.0039701]
[1769009592660,0.00333753,2996.9,2995.7,3.61463342]
[1769009592862,0.16691,2998.1,2996.1,3.44759342]
[1769009593261,3.75203742,2998.1,2995.6,3.61464342]
[1769009593661,3.75203742,2998.1,2995.6,3.44759342]
[1769009593662,3.47853999,2997.8,2995.6,3.44759342]
[1769009593867,0.16695,2997.4,2996.6,0.00500633]
[1769009594860,0.16692,2998.0,2996.6,0.00500633]
[1769009595266,0.85899581,2997.9,2996.6,0.00500633]
[1769009595461,0.16692,2998.0,2996.6,0.00500633]
[1769009595668,1.0256629,2997.9,2996.6,0.00500633]
[1769009595865,0.16692,2997.9,2996.6,0.00500633]
[1769009596168,0.27658695,2998.1,2996.6,0.00500633]
[1769009597072,0.44349695,2998.1,2996.6,0.00500633]
[1769009597970,0.16691,2998.0,2996.6,0.00500633]
[1769009598561,0.16693,2997.8,2996.6,0.00500633]
[1769009598865,0.16693,2997.7,2996.6,0.00500633]
[1769009600070,0.27658695,2998.1,2996.6,3.52689852]
[1769009600865,0.00308952,2998.1,2996.6,3.52689852]
[1769009601566,0.27112041,2998.1,2996.6,3.52689852]
[1769009603270,0.43803041,2998.1,2996.6,3.52689852]
[1769009603968,0.16999952,2998.1,2996.6,3.52689852]
[1769009604177,0.00308952,2998.1,2996.6,3.52689852]
[1769009605969,0.00308952,2998.1,2996.9,3.52189219]
[1769009606367,0.16688,2998.7,2996.9,3.52189219]
[1769009607271,0.16685,2999.2,2996.9,3.68886219]
[1769009607479,0.85941843,2999.1,2997.0,3.52189219]
[1769009607778,0.16685,2999.1,2997.0,3.52189219]
[1769009608075,0.16686,2999.0,2997.0,3.52189219]
[1769009610178,0.16687,2998.8,2997.0,3.52189219]
[1769009610379,0.16688,2998.6,2997.0,3.52189219]
[1769009614375,0.86067835,2998.5,2997.0,3.52189219]
[1769009614583,0.16688,2998.6,2997.0,3.52189219]
[1769009614777,0.16686,2999.0,2997.0,3.52189219]
[1769009615075,1.34157478,2998.9,2997.0,3.52189219]
[1769009615276,0.86066308,2998.8,2997.0,3.52189219]
[1769009615585,0.86066308,2998.7,2997.0,3.52189219]